Cogmind - Beta 15 @@@ ROGUE MODE // 2025.10.08 @ 22:33:19 Player: Petvaria Result: Destroyed by G-47 Trooper with Particle Gun Performance ------------- Evolutions (0) 0 Regions Visited (2) 400 Robots Destroyed (37) 185 Value Destroyed (819) 819 Prototype IDs (0) 0 Alien Tech Used (0) 0 Bonus (0) 0 TOTAL SCORE: 1404 Bonus ------- None Cogmind --------- Core Integrity 0/250 Matter 296/300 Energy 125/125 System Corruption 3% Temperature Cool (9) Movement Rolling (105) Ox1 Location -10/Subcaves Parts ------- > --- POWER (1) -------- Light Ion Engine > --- PROPULSION (2) --- Wheel Compact Wheel > --- UTILITY (2) ------ Large Storage Unit Light Armor Plating > --- WEAPON (2) ------- Subdweller Laser Autogun > --- INVENTORY (15) --- Wheel Subdweller Monowheel Subdweller Monowheel Medium Storage Unit Structural Scanner Propulsion Shielding Light Armor Plating Hacking Suite Riot Gun Subdweller Laser Subdweller Beam Cannon Light Assault Rifle Autogun Grenade Launcher Ripper Peak State ------------ > --- POWER ------------ Light Ion Engine > --- PROPULSION ------- Wheel Compact Wheel > --- UTILITY ---------- Scrap Shield > --- WEAPON ----------- Autogun Autogun > --- INVENTORY -------- Light Armor Plating Autogun Grenade Launcher [Rating: 11] Favorites ----------- Power Light Ion Engine Engine Light Ion Engine Propulsion Light Treads Treads Light Treads Wheel Compact Wheel Utility Light Armor Plating Device Structural Scanner Storage Large Storage Unit Protection Light Armor Plating Weapon Autogun Energy Gun Medium Laser Ballistic Gun Autogun Build | -11 -10 -10 ------- Run | Yrd Mat Sub Slots Evolved . | . . . Power . | . . . Propulsion . | . . . Utility . | . . . Weapon . | . . . Parts Attached 22 | 6 10 6 Power 3 | 1 1 1 Engine 3 | 1 1 1 Core . | . . . Reactor . | . . . Propulsion 4 | 2 1 1 Treads 2 | 2 . . Leg . | . . . Wheel 2 | . 1 1 Hover . | . . . Flight . | . . . Utility 9 | 1 6 2 Device 1 | . 1 . Storage 3 | 1 2 . Processor . | . . . Hackware . | . . . Protection 5 | . 3 2 Artifact . | . . . Weapon 6 | 2 2 2 Energy Gun 2 | 1 . 1 Energy Cannon . | . . . Ballistic Gun 4 | 1 2 1 Ballistic Cannon . | . . . Launcher . | . . . Special Weapon . | . . . Impact Weapon . | . . . Slashing Weapon . | . . . Piercing Weapon . | . . . Special Melee Weapon . | . . . Unidentified Prototypes . | . . . Parts Lost 8 | . 5 3 Power 1 | . 1 . Propulsion 2 | . 1 1 Utility 2 | . 1 1 Weapon 3 | . 2 1 Highest Loss Streak 2 | . 2 1 To Critical Strikes . | . . . Average Backups 10 | 2 9 12 Power . | . . . Propulsion 1 | 1 1 2 Utility 3 | . 3 4 Weapon 4 | . 4 6 Tool/Special . | . . . Unused Backups 15 | . 1 14 Power . | . . . Propulsion 3 | . . 3 Utility 2 | . . 2 Weapon 9 | . 1 8 Tool/Special 1 | . . 1 Average Slot Usage (%) 97 | . 98 96 Engine 13 | . 13 14 Treads 12 | . 19 . Wheel 14 | . 7 27 Storage 12 | . 14 11 Protection 12 | . 12 13 Energy Gun 9 | . 11 6 Ballistic Gun 18 | . 16 21 Peak Build Rating 11 | 6 10 11 Average Rating 8 | 4 8 10 On Entrance 5 | . 6 10 Naked Turns . | . . . Heaviest Build 33 | 14 32 33 Greatest Support 40 | 40 40 26 Greatest Overweight (x) 1 | . 1 1 Average Overweight (x) . | . . . Largest Inventory Capacity 15 | 8 15 15 Average Capacity 11 | 7 11 12 Most Carried 15 | 4 14 15 Average Carried 10 | 2 9 12 Final Capacity 15 | 8 15 15 Final Carried 15 | 4 13 15 Class Distribution -------------------- 100% | Mutant Dominant Class ---------------- Mutant | -10/Materials Mutant | -10/Subcaves Resources | -11 -10 -10 ----------- Run | Yrd Mat Sub Matter Collected 1077 | 181 599 297 Remotely . | . . . Salvage Created 1105 | . 805 300 Parts 70 | . 50 20 Haulers Intercepted 2 | . 2 . Recyclers Shooed . | . . . Parts Field Recycled . | . . . Retrieved Matter . | . . . Parts Self-Destructed 3 | . . 3 Prevented . | . . . Kills | -11 -10 -10 ------- Run | Yrd Mat Sub Combat Hostiles Destroyed 28 | . 21 7 Guns 28 | . 21 7 Classes Destroyed 8 | . 7 1 Worker 2 | . 2 . Hauler 2 | . 2 . Recycler 1 | . 1 . Operator 3 | . 3 . Watcher 1 | . 1 . Swarmer 11 | . 11 . Grunt 10 | . 10 . Subdweller 7 | . . 7 Best Kill Streak 3 | . 3 2 Combat Bots Only 3 | . 3 2 Max Kills in Single Turn 1 | . 1 1 Gunslinging . | . . . Exploded . | . . . Melee . | . . . Uniques/NPCs Destroyed . | . . . Combat | -11 -10 -10 -------- Run | Yrd Mat Sub Hostile Shots Fired 134 | . 97 37 Missed 34 | . 23 11 Hits 100 | . 74 26 Projectile 100 | . 74 26 AOE 6 | . . 6 Critical Strikes 3 | . 2 1 Damage Taken 1557 | . 743 814 Core 253 | . 119 134 Absorbed by Shields . | . . . Core Remaining (%) 100 | 100 . . Volleys Fired 128 | . 97 31 Largest 2 | . 2 2 Hottest 83 | . 70 83 Shots Fired 249 | . 192 57 Gun 249 | . 192 57 Cannon . | . . . Launcher . | . . . Special . | . . . Kinetic 157 | . 108 49 Thermal 92 | . 84 8 Explosive . | . . . Electromagnetic . | . . . Robot Hit Streak 19 | . 12 19 Robot Miss Streak 5 | . 5 2 Penetration Max . | . . . Secondary Targets 2 | . . 2 Max Gunslinging Chain 1 | . . 1 Shots Hit Robots 157 | . 113 44 Core Hits 58 | . 45 13 Critical Kills . | . . . Critical Parts Destroyed 2 | . 2 . Critical Strikes 10 | . 10 . Burn 8 | . 8 . Destroy 2 | . 2 . Melee Attacks . | . . . Impact . | . . . Slashing . | . . . Piercing . | . . . Sneak Attacks . | . . . Combat Hostiles . | . . . Follow-up Attacks . | . . . Damage Inflicted 2116 | . 1459 657 Guns 2116 | . 1459 657 Cannons . | . . . Explosions . | . . . Melee . | . . . Ramming . | . . . Kinetic 1410 | . 772 638 Thermal 706 | . 687 19 Explosive . | . . . Electromagnetic . | . . . Impact . | . . . Slashing . | . . . Piercing . | . . . Highest Corruption 3 | . 3 3 Average Corruption 2 | . 2 3 Corruption Purged . | . . . Corruption Blocked . | . . . Effects 43 | . 26 17 Message Errors 7 | . 1 6 Matter Fused 18 | . 11 7 Heat Flow Errors 4 | . 3 1 Energy Discharges 7 | . 6 1 Parts Rejected 1 | . 1 . Data Loss (minor) 1 | . 1 . Data Loss (major) 3 | . 2 1 Misfires 1 | . 1 . Alerts 1 | . . 1 Overload Shots . | . . . Overflow Damage . | . . . Projectiles . | . . . Explosions . | . . . Melee . | . . . Knockbacks . | . . . Impact . | . . . Kinetic . | . . . Secondary . | . . . Self-Inflicted Damage . | . . . Shots . | . . . Rammed . | . . . Targets Rammed . | . . . Kicked . | . . . Crushed . | . . . Highest Temperature 201 | . 201 75 Average Temperature 48 | . 48 18 Received Heat Transfer 399 | . 270 129 Siege Activations . | . . . Martial Activations . | . . . Shielding Activations . | . . . Robots Disrupted . | . . . Combat Hostiles . | . . . Robots Corrupted . | . . . Combat Hostiles . | . . . Parts Fried . | . . . Impact Corruptions . | . . . Robots Melted . | . . . Combat Hostiles . | . . . Parts Melted 2 | . 1 1 Heat Transferred 2652 | . 2627 25 Parts Sabotaged . | . . . Parts Stolen . | . . . Parts Stripped . | . . . Power Chain Reactions . | . . . Alert | -11 -10 -10 ------- Run | Yrd Mat Sub Maximum Alert Level . | . . . Low Security (%) 100 | 100 100 . Level 1 . | . . . Level 2 . | . . . Level 3 . | . . . Level 4 . | . . . Level 5 . | . . . High Security . | . . . Max Security . | . . . Peak Influence 146 | . 146 . Initial . | . . . Average 66 | . 69 . Influence Increases 706 | . 706 . Destroy 0b10 Robot/C 420 | . 420 . Destroy 0b10 Robot/NC 45 | . 45 . Destroy Leader 106 | . 106 . Successful Hack 11 | . 11 . Select Force Hacks 60 | . 60 . Destroy Structure 4 | . 4 . Lose Combat Pursuer 60 | . 60 . Influence Decreases 706 | . 578 128 Entered New Map 62 | . . 62 Time Decay 584 | . 528 56 Lost Part 60 | . 50 10 Squads Dispatched 5 | . 5 . Investigation 2 | . 2 . Extermination . | . . . Reinforcement 3 | . 3 . Assault . | . . . Garrison . | . . . Intercept . | . . . Searches Triggered . | . . . Construction Impeded . | . . . Haulers Reinforced . | . . . Active Scanning Responses . | . . . Cargo Convoy Interrupts . | . . . Stealth | -11 -10 -10 --------- Run | Yrd Mat Sub Distress Signals . | . . . Communications Jammed . | . . . Distress Signals . | . . . Times Spotted 53 | . 45 8 Peak Tracking Total 5 | . 5 2 Tactical Retreats 3 | . 3 . Traps | -11 -10 -10 ------- Run | Yrd Mat Sub Traps Triggered 3 | . 3 . Indirectly . | . . . Trap Hack Attempts . | . . . Triggered . | . . . Disarmed . | . . . Reprogrammed . | . . . Reused . | . . . Traps Extracted . | . . . Installed . | . . . Triggered . | . . . Machines | -11 -10 -10 ---------- Run | Yrd Mat Sub Machines Disabled . | . . . Max in Single Turn . | . . . Machines Repaired . | . . . Machines Dismantled . | . . . Machines Sabotaged . | . . . Overloaded Fab Kills . | . . . Hacking | -11 -10 -10 --------- Run | Yrd Mat Sub Machines Accessed 8 | . 8 . Terminals 6 | . 6 . Fabricators . | . . . Repair Stations . | . . . Recycling Units 2 | . 2 . Scanalyzers . | . . . Garrison Access . | . . . Total Hacks 15 | . 15 . Successful 5 | . 5 . Failed 10 | . 10 . Catastrophic 2 | . 2 . Database Lockouts . | . . . Manual 15 | . 15 . Terminals 11 | . 11 . Fabricators . | . . . Repair Stations . | . . . Recycling Units 4 | . 4 . Scanalyzers . | . . . Garrison Access . | . . . Terminal Hacks 1 | . 1 . Hauler Manifests 1 | . 1 . Fabricator Hacks . | . . . Repair Station Hacks . | . . . Recycling Unit Hacks . | . . . Scanalyzer . | . . . Garrison Access Hacks . | . . . Unauthorized Hacks 4 | . 4 . Terminals 2 | . 2 . Operators 1 | . 1 . Skim 1 | . 1 . Fabricators . | . . . Repair Stations . | . . . Recycling Units 2 | . 2 . Tunnel 2 | . 2 . Scanalyzers . | . . . Garrison Access . | . . . Data Cores Recovered . | . . . Used . | . . . Hacking Detections 7 | . 7 . Full Trace Events . | . . . Feedback Events . | . . . Feedback Blocked . | . . . Robot Schematics Acquired . | . . . Robots Built . | . . . Authchips . | . . . Time . | . . . Total Robot Build Rating . | . . . Part Schematics Acquired . | . . . Parts Built . | . . . Authchips . | . . . Time . | . . . Total Part Build Rating . | . . . Parts Repaired . | . . . Time . | . . . Parts Recycled . | . . . Recycled Matter . | . . . Retrieved Matter . | . . . Retrieved Components . | . . . Parts Scanalyzed . | . . . Part Schematics Acquired . | . . . Parts Damaged . | . . . Bothacking | -11 -10 -10 ------------ Run | Yrd Mat Sub Used RIF Installer . | . . . Robots Hacked . | . . . Non-combat . | . . . Combat . | . . . Robot Hacks Applied . | . . . Relay Couplers Released . | . . . Fabnet Peak Effective % . | . . . Robots Rewired . | . . . Allies Hacked . | . . . Hacks Repelled . | . . . Allies | -11 -10 -10 -------- Run | Yrd Mat Sub Total Allies . | . . . Largest Group . | . . . Highest-Rated Group . | . . . Highest-Rated Ally . | . . . Total Orders . | . . . Ally Attacks . | . . . Total Damage . | . . . Kills . | . . . Allies Corrupted . | . . . Allies Melted . | . . . Intel | -11 -10 -10 ------- Run | Yrd Mat Sub Active Infowar (turns) 166 | . 166 . Structural 166 | . 166 . Robot Analysis Total . | . . . Derelict Logs Recovered . | . . . Drone Launches . | . . . Drone Recoveries . | . . . Exploration | -11 -10 -10 ------------- Run | Yrd Mat Sub Turns Passed 2940 | 83 1829 1028 Spaces Moved 1928 | 51 1114 763 Core 14 | 14 . . Treads 382 | 37 345 . Legs . | . . . Wheels 1532 | . 769 763 Hover . | . . . Flight . | . . . Fastest Speed 50 | 50 115 90 Average Speed 119 | 129 128 104 Slowest Speed 160 | 160 160 115 Overloaded Moves . | . . . Propulsion Burnouts . | . . . Robots Hopped . | . . . Potential Cave-ins . | . . . Cave-ins Triggered . | . . . Exploration Rate (%) 44 | 3 96 33 Regions Visited 2 Branch Regions 1 Pre-discovered Areas 2 | . 2 . Known Exits Taken . | . . . Unknown Exits Taken 2 | 1 1 . Scrap Searched . | . . . Spaces Dug . | . . . Terrain Destroyed . | . . . Melee . | . . . Projectile . | . . . AOE . | . . . Terrain Rammed . | . . . Walls Destroyed . | . . . Machines Disabled . | . . . Actions | -11 -10 -10 --------- Run | Yrd Mat Sub Total 2337 | 68 1318 951 Wait 192 | 2 74 116 Move 1926 | 50 1113 763 Hop . | . . . Pick Up 47 | 10 17 20 Fast Attach 3 | . 3 . Attach 18 | 6 7 5 Detach 1 | . 1 . Swap 5 | . 3 2 Drop 15 | . 3 12 Fire 128 | . 97 31 Melee . | . . . Ram . | . . . Kick . | . . . Crush . | . . . Escape Stasis . | . . . Rewire . | . . . Trap . | . . . Miscellaneous 2 | . . 2 Route ------- -11/Scrapyard -10/Materials (discovered 6 exits: [*Mat x3] / [*Min x2] / [*Sub]) -10/Subcaves History --------- Turn | Location | Event 6 | -11/Scrapyard | Discovered new exit (range 16) 84 | -11/Scrapyard | Entered Materials 335 | -10/Materials | Discovered new exit (range 13) 337 | -10/Materials | Build established: Mutant 479 | -10/Materials | Discovered new exit (range 9) 1246 | -10/Materials | Discovered new exit (range 7) 1254 | -10/Materials | Discovered new exit (range 4) 1434 | -10/Materials | Discovered new exit (range 6) 1494 | -10/Materials | Discovered new exit (range 8) 1913 | -10/Materials | Entered Subcaves 1914 | -10/Subcaves | Approached by a straggling Scientist 1954 | -10/Subcaves | Core integrity fell below 50% 2103 | -10/Subcaves | Ambushed by Subdwellers from Twisted Machinery 2468 | -10/Subcaves | Core integrity fell below 20% 2778 | -10/Subcaves | Shifting Twisted Machinery released Riot Gun 2786 | -10/Subcaves | Shifting Twisted Machinery released Sub. Beam Cannon 2920 | -10/Subcaves | Shifting Twisted Machinery released Ripper 2941 | -10/Subcaves | Destroyed by G-47 Trooper with Particle Gun Last Messages --------------- S6-B4O(R) destroyed. System corrupted: Energy discharge (-28). Dropped Lgt. Assault Rifle. Acquired Sub. Laser. Acquired 40 matter. L&WFZYFNHKW5MZOG XJL35UH/2E